bitfinex-derivatives/quotes_SOLF0:USTF0_20220108
["timestamp","ask_amount","ask_price","bid_price","bid_amount"]
[1641654567092,13.64557899,143.69,143.61,27.66479]
[1641654567692,13.64557899,143.69,143.61,33.94479]
[1641654567892,6.68130571,143.69,143.61,33.94479]
[1641654568090,4.83208208,143.71,143.61,33.94479]
[1641654568291,4.83208208,143.71,143.61,37.94479]
[1641654568494,4.83208208,143.71,143.62,4.0]
[1641654568692,4.83208208,143.71,143.63,1.74]
[1641654568891,67.249,143.74,143.63,1.74]
[1641654569091,5.56602899,143.73,143.68,27.66479]
[1641654570294,9.56602899,143.73,143.68,27.66479]
[1641654570593,5.56602899,143.73,143.68,27.66479]
[1641654570994,6.96112213,143.76,143.68,55.32958]
[1641654571194,6.96112213,143.76,143.68,62.15258]
[1641654571794,12.52618199,143.76,143.68,62.15258]
[1641654572094,12.52618199,143.76,143.68,34.48779]
[1641654572396,5.56663242,143.72,143.65,1.739]
[1641654572598,5.56663242,143.72,143.61,8.83208208]
[1641654572599,5.56663242,143.72,143.62,1.739]
[1641654572997,5.56663242,143.72,143.64,27.66479]
[1641654573798,18.4713872,143.76,143.64,31.66479]
[1641654573998,18.4713872,143.76,143.65,4.0]
[1641654574198,18.4713872,143.76,143.66,1.739]
[1641654574397,18.4713872,143.76,143.66,10.324]
[1641654574398,13.63930512,143.76,143.66,10.324]
[1641654574599,17.63930512,143.76,143.67,1.739]
[1641654574802,13.63930512,143.76,143.65,1.739]
[1641654574998,13.63930512,143.76,143.67,27.66479]
[1641654574999,27.66479,143.75,143.67,27.66479]
[1641654575399,13.63930512,143.76,143.67,27.66479]
[1641654575600,13.63930512,143.76,143.67,33.32279]
[1641654577001,13.63930512,143.76,143.7,27.66479]
[1641654578702,5.56560946,143.74,143.7,27.66479]
[1641654578902,5.56560946,143.74,143.62,1.739]
[1641654579102,5.56560946,143.74,143.65,27.66479]
[1641654579103,33.23039946,143.74,143.65,27.66479]
[1641654579502,5.56560946,143.74,143.65,27.66479]
[1641654580103,5.56681366,143.71,143.65,27.66479]
[1641654580503,4.0,143.74,143.65,27.66479]
[1641654580704,5.56801349,143.68,143.64,1.739]
[1641654580904,5.56801349,143.68,143.61,4.83208208]
[1641654581105,33.23280349,143.68,143.61,4.83208208]
[1641654581408,5.56801349,143.68,143.63,4.83208208]
[1641654581605,13.6428077,143.72,143.63,4.83208208]
[1641654582208,5.56715604,143.7,143.63,4.83208208]
[1641654582607,5.56707786,143.71,143.63,4.83208208]
[1641654583108,5.56820238,143.68,143.61,4.83208208]
[1641654583310,21.68305512,143.68,143.61,4.83208208]
[1641654583707,4.0,143.67,143.61,4.83208208]
[1641654583907,5.56969579,143.64,143.61,4.83208208]
[1641654584108,5.56969579,143.64,143.58,4.83208208]
[1641654584608,13.64661106,143.68,143.58,4.83208208]
[1641654584808,13.64661106,143.68,143.58,11.57108208]
[1641654585210,13.64661106,143.68,143.62,27.66479]
[1641654586309,6.68185274,143.68,143.62,27.66479]
[1641654586510,6.68185274,143.68,143.62,32.49687208]
[1641654587312,6.68185274,143.68,143.62,4.83208208]
[1641654587512,4.0,143.67,143.61,4.83208208]
[1641654587713,5.56937113,143.65,143.61,4.83208208]
[1641654588513,9.56937113,143.65,143.61,4.83208208]
[1641654588713,5.5704639,143.62,143.61,4.83208208]
[1641654590014,5.56904231,143.66,143.61,4.83208208]
[1641654591315,5.56904231,143.66,143.58,17.86340523]
[1641654591316,5.57029958,143.62,143.58,17.86340523]
[1641654591513,5.57029958,143.62,143.55,38.63891436]
[1641654591514,4.0,143.6,143.55,38.63891436]
[1641654591716,5.57261381,143.56,143.55,38.63891436]
[1641654591913,14.25161381,143.56,143.55,38.63891436]
[1641654592214,6.68546976,143.6,143.52,6.96475832]
[1641654592415,6.6840592,143.63,143.53,4.0]
[1641654592613,6.6840592,143.63,143.54,1.741]
[1641654593115,6.6840592,143.63,143.6,27.66479]
[1641654593313,8.01793981,143.68,143.6,35.12379]
[1641654594113,6.68041962,143.71,143.6,35.12379]
[1641654594314,6.68041962,143.71,143.61,5.74]
[1641654595116,6.68041962,143.71,143.65,27.66479]
[1641654595916,19.78847524,143.7,143.65,27.66479]
[1641654596116,5.56791665,143.69,143.6,66.30370436]
[1641654596317,9.56791665,143.69,143.6,27.66479]
[1641654596517,5.56872253,143.66,143.6,27.66479]
[1641654599822,6.68034587,143.71,143.61,1.74]
[1641654600023,6.68034587,143.71,143.61,10.245]
[1641654600922,6.68034587,143.71,143.6,27.66479]
[1641654601124,5.56871888,143.66,143.6,27.66479]
[1641654601524,6.68125388,143.69,143.6,27.66479]
[1641654602225,10.68125388,143.69,143.6,27.66479]
[1641654602425,5.5691834,143.65,143.6,27.66479]
[1641654605628,5.56889236,143.66,143.6,27.66479]
[1641654609030,5.56889236,143.66,143.6,31.66479]
[1641654609332,6.68111538,143.69,143.65,27.66479]
[1641654610432,19.78832966,143.68,143.65,27.66479]
[1641654610734,8.01454027,143.74,143.66,6.95797384]
[1641654610933,49.05891436,143.75,143.67,1.739]
[1641654611334,49.05891436,143.75,143.71,27.66479]
[1641654611532,10.42,143.75,143.71,27.66479]
[1641654611732,10.42,143.75,143.67,38.63891436]
[1641654611733,5.56565702,143.74,143.67,38.63891436]
[1641654612333,9.56565702,143.74,143.67,38.63891436]
[1641654612833,5.56565702,143.74,143.67,38.63891436]
[1641654613033,5.56565702,143.74,143.65,27.66479]
[1641654613434,5.56565702,143.74,143.68,27.66479]
[1641654614635,10.42,143.75,143.68,27.66479]
[1641654615436,10.68,143.76,143.74,55.32958]
[1641654615637,10.68,143.76,143.74,63.69758]
[1641654615836,10.68,143.76,143.74,36.03279]
[1641654616039,10.68,143.76,143.68,1.739]
[1641654616237,10.68,143.76,143.66,8.69697384]
[1641654616438,10.68,143.76,143.66,6.95797384]
[1641654617440,10.68,143.76,143.71,27.66479]
[1641654619142,5.56557935,143.75,143.71,27.66479]
[1641654619741,10.68,143.76,143.71,27.66479]
[1641654620743,5.5653054,143.75,143.68,27.66479]
[1641654621745,4.0,143.7,143.65,27.66479]
[1641654621945,8.324,143.7,143.65,27.66479]
[1641654622146,5.56766346,143.69,143.64,16.44419508]
[1641654622346,5.56766346,143.69,143.64,14.70519508]
[1641654622547,5.56775193,143.69,143.64,14.70519508]
[1641654622746,4.0,143.67,143.64,14.70519508]
[1641654622948,5.56879789,143.66,143.64,14.70519508]
[1641654623147,5.56879789,143.66,143.61,38.63891436]
[1641654623347,9.56879789,143.66,143.61,14.71209179]
[1641654623549,5.56879789,143.66,143.61,14.71209179]
[1641654623751,5.56879789,143.66,143.61,42.37688179]
[1641654624352,5.56879789,143.66,143.61,27.66479]
[1641654628353,6.68093845,143.7,143.61,27.66479]
[1641654628553,6.68093845,143.7,143.61,36.92279]
[1641654628952,6.68093845,143.7,143.61,40.92279]
[1641654629153,6.68093845,143.7,143.62,4.0]
[1641654629654,6.68093845,143.7,143.61,40.92279]
[1641654629854,6.68093845,143.7,143.66,27.66479]
[1641654631754,6.68093845,143.7,143.61,29.40479]
[1641654631954,6.68093845,143.7,143.61,27.66479]
[1641654632155,5.56848703,143.67,143.61,27.66479]
[1641654632353,5.56848703,143.67,143.62,3.18583086]
[1641654632554,11.58648703,143.67,143.62,3.18583086]
[1641654634557,5.56960309,143.64,143.62,3.18583086]
[1641654634757,15.05060309,143.64,143.56,37.82474522]
[1641654634958,5.57075334,143.61,143.56,37.82474522]
[1641654635258,12.80375334,143.61,143.56,37.82474522]
[1641654635457,5.57149032,143.59,143.53,1.741]
[1641654635657,5.57149032,143.59,143.5,4.0]
[1641654635857,5.57149032,143.59,143.53,27.66479]
[1641654637058,6.96694186,143.64,143.54,4.0]
[1641654637260,66.2272,143.65,143.54,4.0]
[1641654637459,6.68285032,143.66,143.56,4.0]
[1641654637659,6.68285032,143.66,143.57,1.74]
[1641654637863,6.68285032,143.66,143.6,27.66479]
[1641654638262,6.68285032,143.66,143.58,27.66479]
[1641654638463,5.57008056,143.63,143.58,27.66479]
[1641654638663,5.57050087,143.62,143.54,16.92216755]
[1641654638864,9.57050087,143.62,143.54,16.92216755]
[1641654639065,5.5716453,143.59,143.54,16.92216755]
[1641654639965,5.5716453,143.59,143.54,44.58695755]
[1641654640366,5.5716453,143.59,143.54,27.66479]
[1641654642370,5.57008056,143.63,143.54,31.66479]
[1641654642569,23.21626486,143.67,143.54,37.13479]
[1641654642769,4.0,143.66,143.55,1.74]
[1641654642970,19.21626486,143.67,143.54,31.66479]
[1641654643172,19.21626486,143.67,143.55,1.74]
[1641654643371,19.21626486,143.67,143.55,5.74]
[1641654643872,19.21626486,143.67,143.59,27.66479]
[1641654644073,23.21626486,143.67,143.59,27.66479]
[1641654644274,19.21626486,143.67,143.59,27.66479]
[1641654644475,23.21626486,143.67,143.59,27.66479]
[1641654644673,4.0,143.65,143.59,27.66479]
[1641654644874,5.56982602,143.64,143.59,27.66479]
[1641654645974,13.64764698,143.67,143.59,27.66479]
[1641654649280,4.0,143.64,143.59,27.66479]
[1641654649479,5.56929636,143.65,143.59,27.66479]
[1641654650782,5.56929636,143.65,143.59,31.66479]
[1641654650981,6.68240354,143.67,143.59,31.66479]
[1641654651180,6.9637883,143.7,143.6,1.74]
[1641654651382,6.9637883,143.7,143.59,27.66479]
[1641654651582,5.56778684,143.69,143.59,29.40479]
[1641654651782,9.56778684,143.69,143.59,27.66479]
[1641654651980,5.56897076,143.66,143.57,4.0]
[1641654652183,5.57057256,143.62,143.55,18.69923901]
[1641654652380,15.87657256,143.62,143.55,16.95923901]
[1641654652881,4.0,143.61,143.55,16.95923901]
[1641654653082,11.87657256,143.62,143.55,16.95923901]
[1641654653285,4.0,143.56,143.53,15.02613969]
[1641654653483,4.0,143.56,143.53,9.45215508]
[1641654653484,10.834,143.56,143.53,9.45215508]
[1641654653683,10.834,143.56,143.49,183.67380825]
[1641654653886,4.0,143.53,143.49,85.51493511]
[1641654654083,27.66479,143.51,143.49,79.51493511]
[1641654654884,27.66479,143.51,143.49,59.09092043]
[1641654655286,27.66479,143.51,143.43,27.66479]
[1641654655486,4.0,143.5,143.4,86.75571043]
[1641654655687,4.0,143.48,143.4,86.75571043]
[1641654655985,27.66479,143.45,143.4,59.09092043]
[1641654656185,36.33379,143.45,143.4,59.09092043]
[1641654656585,36.33379,143.45,143.42,39.38464378]
[1641654657587,8.669,143.45,143.42,39.38464378]
[1641654657788,13.66478055,143.49,143.41,4.0]
[1641654657987,6.97423022,143.49,143.43,27.66479]
[1641654659389,12.54985787,143.49,143.43,27.66479]
[1641654659988,9.57682781,143.46,143.39,39.38464378]
[1641654660189,14.20682781,143.46,143.39,39.38464378]
[1641654660388,4.0,143.45,143.39,39.38464378]
[1641654660589,5.5779965,143.43,143.39,39.38464378]
[1641654660888,4.0,143.41,143.35,59.09092043]
[1641654661090,6.97788012,143.41,143.35,33.09092043]
[1641654661290,10.97788012,143.41,143.35,33.09092043]
[1641654661691,6.97788012,143.41,143.3,33.09092043]
[1641654662091,27.66479,143.39,143.31,27.66479]
[1641654662296,34.30779,143.39,143.31,27.66479]
[1641654662694,6.643,143.39,143.31,27.66479]
[1641654663095,6.643,143.39,143.32,1.743]
[1641654663296,6.9764197,143.44,143.32,1.743]
[1641654663495,6.9764197,143.44,143.32,5.743]
[1641654663795,6.9764197,143.44,143.32,1.743]
[1641654663997,6.9764197,143.44,143.32,5.743]
[1641654664195,34.6412097,143.44,143.32,5.743]
[1641654664596,34.6412097,143.44,143.33,4.0]
[1641654664997,34.6412097,143.44,143.34,4.0]
[1641654665198,4.0,143.42,143.32,1.743]
[1641654665500,4.0,143.39,143.3,1.743]
[1641654665700,4.0,143.38,143.29,27.66479]
[1641654665900,9.927,143.39,143.26,1.744]
[1641654666098,27.66479,143.35,143.26,29.40879]
[1641654666298,4.0,143.39,143.27,4.0]
[1641654666499,4.0,143.39,143.26,31.66479]
[1641654666698,4.0,143.39,143.27,4.0]
[1641654666899,4.0,143.4,143.26,31.66479]
[1641654667100,6.69441808,143.41,143.31,4.0]
[1641654667300,6.97836706,143.4,143.31,12.158]
[1641654667503,6.69441808,143.41,143.31,12.158]
[1641654667801,6.69441808,143.41,143.33,4.88361877]
[1641654668403,6.6946529,143.4,143.33,4.88361877]
[1641654668604,6.6946529,143.4,143.35,4.88361877]
[1641654669605,6.6946529,143.4,143.34,4.88361877]
[1641654669806,7.348,143.43,143.34,4.88361877]
[1641654670707,6.97812358,143.41,143.34,4.88361877]
[1641654671106,5.57939766,143.39,143.33,4.88361877]
[1641654672009,13.07439766,143.39,143.33,4.88361877]
[1641654672609,5.58028126,143.37,143.33,4.88361877]
[1641654672808,9.58028126,143.37,143.33,4.88361877]
[1641654673007,5.5814865,143.34,143.33,4.88361877]
[1641654673206,5.58263813,143.31,143.3,14.63113956]
[1641654673409,13.19263813,143.31,143.29,14.63113956]
[1641654673608,7.61,143.31,143.29,14.63113956]
[1641654674212,7.61,143.31,143.23,69.1483]
[1641654674213,7.61,143.31,143.27,42.29592956]
[1641654674412,6.98153384,143.34,143.27,42.29592956]
[1641654674615,15.01240015,143.4,143.28,4.0]
[1641654674817,4.0,143.44,143.29,1.744]
[1641654675015,6.97690644,143.44,143.32,4.0]
[1641654675215,6.97690644,143.44,143.32,11.41]
[1641654675414,6.97690644,143.44,143.32,7.41]
[1641654675616,6.97690644,143.44,143.32,11.41]
[1641654676016,6.97690644,143.44,143.33,21.78018717]
[1641654676214,6.97690644,143.44,143.38,27.66479]
[1641654676415,6.97495989,143.48,143.38,27.66479]
[1641654676814,10.97495989,143.48,143.38,27.66479]
[1641654677217,10.97495989,143.48,143.39,3.14904761]
[1641654677616,4.0,143.48,143.39,3.14904761]
[1641654677816,27.66479,143.49,143.39,3.14904761]
[1641654678218,27.66479,143.49,143.41,27.66479]
[1641654678617,6.97423022,143.5,143.41,27.66479]
[1641654678817,5.57554333,143.49,143.41,27.66479]
[1641654679018,5.57554333,143.49,143.42,4.0]
[1641654679218,6.97131305,143.56,143.44,4.0]
[1641654679418,9.63019958,143.55,143.42,13.51804761]
[1641654679619,9.63019958,143.55,143.43,4.0]
[1641654680019,9.63019958,143.55,143.44,4.0]
[1641654680219,5.5746064,143.51,143.42,4.89104761]
[1641654680419,5.5746064,143.51,143.42,3.14904761]
[1641654680619,5.5746064,143.51,143.44,17.78018717]
[1641654680821,5.5746064,143.51,143.44,21.78018717]
[1641654681019,5.5746064,143.51,143.44,17.78018717]
[1641654681220,5.57533421,143.49,143.44,17.78018717]
[1641654681420,5.57533421,143.49,143.45,17.78018717]
[1641654681421,11.98233421,143.49,143.45,17.78018717]
[1641654682822,5.57653978,143.46,143.42,17.78018717]
[1641654683720,5.57533421,143.49,143.42,17.78018717]
[1641654684222,34.63780443,143.52,143.44,14.63113956]
[1641654685322,6.97204211,143.54,143.44,14.63113956]
[1641654685524,6.97204211,143.54,143.44,18.63113956]
[1641654685824,70.78526768,143.57,143.44,18.63113956]
[1641654686224,70.78526768,143.57,143.46,4.0]
[1641654686424,8.02426768,143.57,143.49,42.29592956]
[1641654686625,8.02426768,143.57,143.49,54.32492956]
[1641654686824,4.0,143.62,143.49,54.32492956]
[1641654687224,17.65161932,143.63,143.49,54.32492956]
[1641654687427,17.65161932,143.63,143.5,4.0]
[1641654687626,17.65161932,143.63,143.53,14.63113956]
[1641654687825,13.65161932,143.63,143.53,23.43613956]
[1641654688026,17.65161932,143.63,143.53,23.43613956]
[1641654688326,17.65161932,143.63,143.56,27.66479]
[1641654688526,13.65161932,143.63,143.56,33.39779]
[1641654689126,5.57045334,143.62,143.56,33.39779]
[1641654690931,5.57045334,143.62,143.56,27.66479]
[1641654691329,5.57125106,143.6,143.56,27.66479]
[1641654691929,5.57125106,143.6,143.5,149.82813956]
[1641654692129,5.57125106,143.6,143.5,14.63113956]
[1641654692330,5.57125106,143.6,143.53,27.66479]
[1641654692531,5.57125106,143.6,143.53,35.48979]
[1641654693332,5.57178933,143.59,143.53,35.48979]
[1641654694931,5.57124726,143.6,143.53,35.48979]
[1641654695333,5.57124726,143.6,143.54,3.15579816]
[1641654695833,5.57216544,143.58,143.54,3.15579816]
[1641654696033,5.57216544,143.58,143.53,27.66479]
[1641654698633,5.57326654,143.55,143.49,29.40579]
[1641654698833,5.57326654,143.55,143.5,14.63113956]
[1641654699434,5.57326654,143.55,143.5,20.41813956]
[1641654699636,5.57326654,143.55,143.5,5.787]
[1641654701035,5.57326654,143.55,143.48,30.82184216]
[1641654701236,5.57326654,143.55,143.48,27.66479]
[1641654702038,5.57326654,143.55,143.49,3.15993292]
[1641654702239,5.57326654,143.55,143.49,11.27393292]
[1641654702738,5.57319145,143.55,143.49,11.27393292]
[1641654703739,5.57401849,143.53,143.49,11.27393292]
[1641654703940,5.57401849,143.53,143.49,3.15993292]
[1641654704140,34.35108809,143.58,143.55,6.30308947]
[1641654704340,34.35108809,143.58,143.5,3.15993292]
[1641654704541,62.01587809,143.58,143.48,42.29592956]
[1641654705341,34.35108809,143.58,143.49,3.16720742]
[1641654705544,6.68629809,143.58,143.49,14.18520742]
[1641654705940,6.68629809,143.58,143.49,10.18520742]
[1641654706340,37.65248282,143.62,143.49,10.18520742]
[1641654706541,65.31727282,143.62,143.51,42.29592956]
[1641654707243,41.31727282,143.62,143.51,42.29592956]
[1641654707643,41.31727282,143.62,143.52,3.16720742]
[1641654707845,41.31727282,143.62,143.52,11.55720742]
[1641654708444,41.31727282,143.62,143.53,3.16720742]
[1641654708844,45.31727282,143.62,143.53,3.16720742]
[1641654709244,4.0,143.61,143.53,3.16720742]
[1641654709445,4.0,143.59,143.53,3.16720742]
[1641654709644,5.57314383,143.55,143.53,3.16720742]
[1641654710045,5.57314383,143.55,143.52,17.79834698]
[1641654710547,6.68620881,143.58,143.52,45.46313698]
[1641654710745,6.68620881,143.58,143.52,51.95313698]
[1641654711546,6.68620881,143.58,143.52,48.78592956]
[1641654712349,6.68620881,143.58,143.53,17.79834698]
[1641654713248,6.68620881,143.58,143.54,14.63113956]
[1641654713447,5.57282701,143.56,143.54,14.63113956]
[1641654713846,18.84413955,143.56,143.51,56.16329378]
[1641654714049,18.84413955,143.56,143.55,3.18304038]
[1641654714250,6.97155605,143.55,143.53,14.76994703]
[1641654714448,10.97155605,143.55,143.53,14.76994703]
[1641654714647,27.66479,143.54,143.53,4.703e-05]
[1641654715150,27.66479,143.54,143.49,39.23443476]
[1641654715354,6.97155605,143.55,143.46,39.23443476]
[1641654716051,6.97155605,143.55,143.47,39.23443476]
[1641654716752,34.35192955,143.56,143.47,66.89922476]
[1641654716952,6.68713955,143.56,143.47,75.39622476]
[1641654717355,6.68713955,143.56,143.47,36.16179]
[1641654718654,6.68713955,143.56,143.49,39.23443476]
[1641654719355,5.57310591,143.55,143.49,39.23443476]
[1641654719555,5.57310591,143.55,143.48,39.23443476]
[1641654720762,27.66479,143.54,143.48,39.23443476]
[1641654720966,5.57468757,143.51,143.48,39.23443476]
[1641654721162,12.60768757,143.51,143.47,39.23443476]
[1641654721660,7.033,143.51,143.47,33.65819242]
[1641654722061,7.033,143.51,143.44,16.92885902]
[1641654722260,6.6908548,143.48,143.44,16.92885902]
[1641654722460,15.5378548,143.48,143.44,16.92885902]
[1641654722660,27.66479,143.47,143.44,16.92885902]
[1641654723264,27.66479,143.47,143.4,16.92885902]
[1641654724365,27.66479,143.47,143.38,44.59364902]
[1641654724863,6.692149,143.46,143.38,16.92885902]
[1641654725064,4.0,143.45,143.38,16.92885902]
[1641654725265,6.375,143.45,143.38,16.92885902]
[1641654725463,10.69297131,143.44,143.38,16.92885902]
[1641654726766,27.66479,143.42,143.38,16.92885902]
[1641654727168,5.57888569,143.4,143.35,44.59364902]
[1641654728170,27.66479,143.42,143.35,27.66479]
[1641654728973,6.69297131,143.44,143.36,4.0]
[1641654729170,6.69297131,143.44,143.37,4.0]
[1641654729871,6.69297131,143.44,143.36,6.716]
[1641654730073,27.66479,143.47,143.36,8.459]
[1641654730371,19.74086666,143.47,143.36,8.459]
[1641654730573,19.74086666,143.47,143.36,29.3423121]
[1641654730773,19.74086666,143.47,143.4,27.66479]
[1641654731274,6.69084131,143.48,143.4,27.66479]
[1641654731473,6.69084131,143.48,143.4,36.52879]
[1641654731675,34.63780443,143.52,143.4,40.52879]
[1641654732075,34.63780443,143.52,143.4,36.52879]
[1641654732773,34.63780443,143.52,143.4,72.19279913]
[1641654732976,38.63780443,143.52,143.4,72.19279913]
[1641654733174,6.69067217,143.49,143.4,44.52800913]
[1641654733374,4.0,143.48,143.4,44.52800913]
[1641654733574,5.57720896,143.45,143.4,16.86321913]
[1641654733776,5.57875217,143.41,143.36,68.2991]
[1641654733974,5.57875217,143.41,143.34,58.46639744]
[1641654734173,5.57875217,143.41,143.34,62.46639744]
[1641654734575,11.15754596,143.41,143.34,58.46639744]
[1641654734776,11.15754596,143.41,143.33,27.66479]
[1641654738080,5.57879379,143.41,143.33,27.66479]
[1641654739483,5.57926872,143.39,143.33,27.66479]
[1641654739684,5.58042242,143.36,143.32,16.85926269]
[1641654739883,10.91242242,143.36,143.32,16.85926269]
[1641654740083,10.91242242,143.36,143.29,64.99]
[1641654740084,5.58195533,143.32,143.29,64.99]
[1641654740284,5.58195533,143.32,143.26,58.46639744]
[1641654740784,5.58195533,143.32,143.26,86.13118744]
[1641654741186,5.58195533,143.32,143.26,27.66479]
[1641654741389,11.33495533,143.32,143.26,27.66479]
[1641654742387,11.33495533,143.32,143.28,39.23560214]
[1641654742586,5.58339891,143.29,143.28,36.82800282]
[1641654742788,68.27097891,143.29,143.25,16.86066018]
[1641654742987,5.58414527,143.27,143.25,16.86066018]
[1641654743388,4.0,143.27,143.25,11.27574625]
[1641654743589,4.0,143.27,143.23,58.46639744]
[1641654743790,4.0,143.27,143.21,11.27574625]
[1641654743990,13.68509678,143.28,143.21,11.27574625]
[1641654744789,17.68509678,143.28,143.21,11.27574625]
[1641654745189,4.0,143.27,143.19,127.28679744]
[1641654745394,4.0,143.24,143.21,14.70593356]
[1641654745691,4.0,143.23,143.21,8.70593356]
[1641654746090,4.0,143.22,143.21,8.70593356]
[1641654746491,4.0,143.23,143.15,27.66479]
[1641654746691,6.70242752,143.24,143.15,31.66479]
[1641654746991,6.70242752,143.24,143.15,55.32958]
[1641654747191,27.66479,143.29,143.18,4.0]
[1641654747493,27.66479,143.29,143.18,12.728]
[1641654748192,27.66479,143.29,143.19,4.0]
[1641654748394,6.9820213,143.34,143.21,4.0]
[1641654748592,6.9820213,143.34,143.22,1.744]
[1641654748794,34.6468113,143.34,143.26,27.66479]
[1641654748993,5.58221269,143.32,143.26,27.66479]
[1641654749594,5.58221269,143.32,143.28,4.89244756]
[1641654750394,5.58221269,143.32,143.27,4.89244756]
[1641654750795,5.58281861,143.3,143.27,4.89244756]
[1641654751195,0.69153979,143.27,143.22,27.66479]
[1641654751395,0.69153979,143.27,143.19,133.5551]
[1641654751597,6.98372791,143.3,143.19,133.5551]
[1641654751996,6.98372791,143.3,143.19,137.5551]
[1641654752595,6.98372791,143.3,143.19,133.5551]
[1641654752796,6.98372791,143.3,143.21,27.66479]
[1641654754698,10.98372791,143.3,143.21,27.66479]
[1641654754897,27.66479,143.28,143.21,27.66479]
[1641654755098,33.44879,143.28,143.22,3.155329]
[1641654755699,37.44879,143.28,143.22,3.155329]
[1641654755898,25.54974586,143.28,143.22,3.155329]
[1641654756099,6.98592336,143.26,143.22,3.155329]
[1641654756902,5.58568443,143.23,143.2,3.155329]
[1641654757101,2.43151962,143.2,143.15,27.66479]
[1641654757299,10.20551962,143.2,143.15,27.66479]
[1641654757502,7.774,143.2,143.15,27.66479]
[1641654759907,6.70359707,143.21,143.15,27.66479]
[1641654761408,6.70359707,143.21,143.13,27.66479]
[1641654762711,5.58763142,143.18,143.13,27.66479]
[1641654764311,5.58763142,143.18,143.1,66.82711258]
[1641654764510,12.14463142,143.18,143.11,55.99782169]
[1641654764711,4.0,143.12,143.11,50.40695575]
[1641654764910,37.96979,143.12,143.06,58.46639744]
[1641654765111,6.70894343,143.1,143.06,49.46639744]
[1641654765311,13.70243948,143.1,143.06,49.46639744]
[1641654765510,13.70243948,143.1,143.02,49.46639744]
[1641654765810,4.0,143.09,143.02,49.46639744]
[1641654766110,8.825,143.09,143.02,49.46639744]
[1641654766610,8.825,143.09,143.01,27.66479]
[1641654767810,8.825,143.09,143.0,130.6532]
[1641654768011,12.825,143.09,143.0,130.6532]
[1641654768314,8.825,143.09,143.0,130.6532]
[1641654768512,12.825,143.09,142.99,91.24689]
[1641654768914,4.0,143.07,142.99,27.66479]
[1641654769112,6.71044829,143.07,142.96,27.66479]
[1641654769513,10.71091573,143.06,142.96,27.66479]
[1641654769713,10.99643182,143.04,142.95,34.85]
[1641654770113,4.0,143.03,142.92,34.85]
[1641654770316,12.609,143.03,142.91,133.5642]
[1641654770516,4.0,143.02,142.91,133.5642]
[1641654770714,8.609,143.03,142.91,133.5642]
[1641654770915,27.66479,142.99,142.91,133.5642]
[1641654771115,34.94979,142.99,142.91,4.0]
[1641654771517,34.94979,142.99,142.9,4.0]
[1641654771715,34.94979,142.99,142.89,167.07257314]
[1641654771920,34.94979,142.99,142.88,27.66479]
[1641654772119,6.99961502,142.98,142.88,27.66479]
[1641654772520,10.71066581,143.06,142.91,4.0]
[1641654772719,13.70611877,143.06,142.95,4.0]
[1641654772919,6.71066581,143.06,142.99,27.66479]
[1641654773119,6.99447437,143.08,142.99,35.67379]
[1641654773821,8.0505759,143.1,142.99,39.67379]
[1641654774023,27.66479,143.11,143.0,1.747]
[1641654774424,27.66479,143.11,143.01,4.0]
[1641654774825,27.66479,143.11,142.99,29.41179]
[1641654775027,33.25505335,143.11,143.05,27.66479]
[1641654775224,5.59026335,143.11,143.05,33.80279]
[1641654776027,9.65705135,143.15,143.05,37.80279]
[1641654776225,6.9898298,143.18,143.09,4.0]
[1641654776426,6.9898298,143.18,143.09,7.638]
[1641654777126,5.58842467,143.16,143.1,27.66479]
[1641654777326,5.58842467,143.16,143.07,14.64265689]
[1641654777929,5.58842467,143.16,143.06,68.6515]
[1641654778532,5.58842467,143.16,143.06,72.6515]
[1641654778930,5.58842467,143.16,143.06,87.29415689]
[1641654779132,5.58842467,143.16,143.09,27.66479]
[1641654779530,5.58842467,143.16,143.06,83.29415689]
[1641654779731,13.28342467,143.16,143.06,83.29415689]
[1641654780834,5.58842467,143.16,143.06,83.29415689]
[1641654781032,5.58842467,143.16,143.13,27.66479]
[1641654781236,8.04401235,143.22,143.13,36.27179]
[1641654782133,5.58636314,143.21,143.13,36.27179]
[1641654782935,4.0,143.15,143.12,14.64265689]
[1641654783136,5.589638,143.13,143.12,14.64265689]
[1641654783735,36.41879,143.15,143.12,9.05260109]
[1641654783935,8.754,143.15,143.12,9.05260109]